Workbook

Sheet 1
E1: Приложение 1 к Постановлению №36 от 06.09.2022 г « Об исполнении бюджета сельской администрации МО Каспинское сельское поселение за 2 квартал 2022 года."
A2: Объем поступлений доходов в бюджет муниципального образования Каспинское сельское поселение за 2 квартал 2022 году
A3: Код главы администратора* | B3: Код бюджетной классификации Российской Федерации | C3: Наименование доходов | D3: Изменения (+;-) | E3: Утверждено, сумма (тыс.рублей) | F3: Исполнено, сумма (тыс.рублей) | G3: Процент исполнения (процент)
A4: 1 | B4: 2 | C4: 3 | D4: 4 | E4: 5
A5: 182 | B5: 1 00 00000 00 0000 000 | C5: НАЛОГОВЫЕ И НЕНАЛОГОВЫЕ ДОХОДЫ | D5: =D6+D15 ->  | E5: =E6+E15 -> 249.00 | F5: =F6+F15 -> 55.09 | G5: =F5/E5*100 -> 22
C6: НАЛОГОВЫЕ ДОХОДЫ | D6: =D7+D8+D10 ->  | E6: =E7+E8+E10 -> 249.00 | F6: =F7+F8+F10 -> 55.09 | G6: =F6/E6*100 -> 22
A7: 182 | B7: 1 01 02000 01 0000 110 | C7: Налог на доходы физических лиц | D7: 12.0 | E7: 20.00 | F7: 9.98 | G7: =F7/E7*100 -> 50
A8: 182 | B8: 1 05 00000 00 0000 000 | C8: Налоги на совокупный доход | D8: =D9 -> -1.2 | E8: =E9 -> 13.00 | F8: =F9 -> 11.19 | G8: =F8/E8*100 -> 86
A9: 182 | B9: 1 05 03000 01 0000 110 | C9: Единый сельскохозяйственный налог | D9: -1.2 | E9: 13.00 | F9: 11.19 | G9: 86
A10: 182 | B10: 1 06 00000 00 0000 000 | C10: Налоги на имущество | D10: =D11+#REF! ->  | E10: =E11+E12 -> 216.00 | F10: =F11+F12 -> 33.92 | G10: 16
A11: 182 | B11: 1 06 01000 00 0000 110 | C11: Налог на имущество физических лиц | D11: -8.7 | E11: 42.00 | F11: 9.86 | G11: 23
A12: 182 | B12: 1 06 06000 00 0000 110 | C12: Земельный налог | E12: =E13+E14 -> 174.00 | F12: =F13+F14 -> 24.07 | G12: 14
A13: 182 | B13: 1 06 06033 10 1000 110 | C13: Земельный налог с организаций | E13: 25.00 | F13: 18.10 | G13: 72
A14: 182 | B14: 1 06 06043 10 1000 110 | C14: Земельный налог с физических лиц | E14: 149.00 | F14: 5.97 | G14: 4
C15: НЕНАЛОГОВЫЕ ДОХОДЫ | D15: =#REF! -> 
A16: 801 | B16: 2 00 00000 00 0000 000 | C16: Безвозмездные поступления | D16: =D17 -> 0.0 | E16: =E17+E24 -> 1751.00 | F16: =F17+F24 -> 863.99 | G16: 49
A17: 801 | B17: 2 02 00000 00 0000 000 | C17: Безвозмездные поступления от других бюджетов бюджетной системы Российской Федерации | D17: 0.0 | E17: =E18 -> 1751.00 | F17: =F18 -> 863.99 | G17: 49
A18: 801 | B18: 2 02 00000 00 0000 000 | C18: Безвозмездные поступления от других бюджетов бюджетной системы Российской Федерации | E18: =SUM(E19:E23) -> 1751.00 | F18: =SUM(F19:F23) -> 863.99 | G18: 49
A19: 801 | B19: 2 02 15001 10 0000 150 | C19: Дотации бюджетам субъектов Российской Федерации и муниципальных образований | E19: 1278.00 | F19: 639.00 | G19: 50
A20: 801 | B20: 2 02 30024 10 0000 150 | C20: Субвенции бюджетам сельских поселений на выполнение передаваемых полномочий субъектов Российской Федерации | E20: 5.00 | F20: 5.00 | G20: 100
A21: 801 | B21: 2 02 03000 00 0000 151 | C21: Субвенции бюджетам субъектов Российской Федерации и муниципальных образований | D21: 2.3 | E21: 69.50 | F21: 35.60 | G21: 51
A22: 801 | B22: 2 02 04014 10 0000 151 | C22: Межбюджетные трансферты, передаваемые бюджетам муниципальных образований на осуществление части полномочий по решению вопросов местного значения | D22: -45.8 | E22: 239.00 | F22: 126.09 | G22: 53
A23: 801 | B23: 2 02 04999 10 0000 151 | C23: Прочие межбюджетные трансферты, передаваемые бюджетам сельских поселений | D23: 45.8 | E23: 159.50 | F23: 58.30 | G23: 37
A24: 801 | B24: 2 19 60010 10 0000 150 | C24: Возврат прочих остатков субсидий, субвенций и иных межбюджетных трансфертов, имеющих целевое назначение, прошлых лет из бюджетов сельских поселений
C25: Всего доходов | D25: =D5+D16 ->  | E25: =E5+E16 -> 2000.00 | F25: =F5+F16 -> 919.08 | G25: 46

Sheet 2
B1: Приложение 2 к Постановлению №36 от 06.09.2022 г « Об исполнении бюджета сельской администрации МО Каспинское сельское поселение за 2 квартал 2022 года."
A3: Распределение бюджетных ассигнований по разделам, подразделам классификации расходов бюджета муниципального образования Каспинское сельское поселение за 2 квартал 2022год
A5: Наименование показателя | B5: Раздел, подраздел | C5: Изменения (+;-) | D5: Утверждено,(тыс.руб.) | E5: Исполнено,(тыс.руб.) | F5: Неисполненные назначения
A6: ОБЩЕГОСУДАРСТВЕННЫЕ ВОПРОСЫ | B6: 0100 | C6: =SUM(C7:C8) -> 130.8 | D6: =SUM(D7:D10) -> 1745.18 | E6: =SUM(E7:E10) -> 802.4 | F6: =D6-E6 -> 942.8
A7: Функционирование высшего должностного лица субъекта Российской Федерации и муниципального образования | B7: 0102 | C7: -38.0 | D7: ='3'!G7 -> 357.13 | E7: ='3'!H7 -> 164.61 | F7: =D7-E7 -> 192.5
A8: Функционирование Правительства Российской Федерации, высших исполнительных органов государственной власти субъектов Российской Федерации, местных администраций | B8: 0104 | C8: 168.8 | D8: ='3'!G10 -> 1210.24 | E8: ='3'!H10 -> 520.71 | F8: 689.5
A9: Резервные фонды | B9: 0111 | D9: ='3'!G23 -> 15.00 | F9: 15.0
A10: ДРУГИЕ ОБЩЕГОСУДАРСТВЕННЫЕ РАСХОДЫ | B10: 0113 | D10: ='3'!G34 -> 162.81 | E10: ='3'!H34 -> 117.08 | F10: 45.7
A11: НАЦИОНАЛЬНАЯ ОБОРОНА | B11: 0200 | C11: =C12 -> 50.5 | D11: =D12 -> 69.50 | E11: =E12 -> 35.60 | F11: 33.9
A12: Мобилизационная и вневойсковая подготовка | B12: 0203 | C12: 50.5 | D12: ='3'!G51 -> 69.50 | E12: ='3'!H51 -> 35.60 | F12: 33.9
A13: НАЦИОНАЛЬНАЯ ЭКОНОМИКА | B13: 0400 | D13: =D14 -> 133.60 | E13: =E14 -> 53.56 | F13: 80.0
A14: Дорожное хозяйство (дорожные фонды) | B14: 0409 | D14: ='3'!G57 -> 133.60 | E14: ='3'!H57 -> 53.56 | F14: 80.0
A15: ЖИЛИЩНО-КОММУНАЛЬНОЕ ХОЗЯЙСТВО | B15: 0500 | D15: =D16+D17 -> 115.40 | E15: =E16+E17 -> 32.86 | F15: 82.5
A16: КОММУНАЛЬНОЕ ХОЗЯЙСТВО | B16: 0502 | D16: ='3'!G61 -> 105.40 | E16: ='3'!H61 -> 26.31 | F16: 79.1
A17: БЛАГОУСТРОЙСТВО | B17: 0503 | D17: ='3'!G67 -> 10.00 | E17: ='3'!H67 -> 6.55 | F17: 3.5
A18: ВСЕГО РАСХОДОВ | C18: =C6+#REF!+#REF!+C11+#REF! ->  | D18: =D6+D11+D13+D15 -> 2063.68 | E18: =E6+E11+E13+E15 -> 924.41 | F18: 1139.3

Sheet 3
E1: Приложение 3 к Постановлению №36 от 06.09.2022 г « Об исполнении бюджета сельской администрации МО Каспинское сельское поселение за 2 квартал 2022 года."
A2: Ведомственная структура расходов бюджета муниципального образования Каспинское сельское поселение за 2 квартал 2022 год
H3: (тыс. рублей)
A4: Наименование главного распорядителя | B4: Гл | C4: Рз | D4: ПР | E4: ЦСР | F4: ВР | G4: Утверждено, сумма | H4: Исполнено, сумма | I4: Неисполненные назначения
A5: 1 | B5: 2 | C5: 3 | D5: 4 | E5: 5 | F5: 6 | G5: 7 | H5: 8 | I5: 9
A6: ОБЩЕГОСУДАРСТВЕННЫЕ ВОПРОСЫ | B6: 801 | C6: 01 | D6: 00 | G6: =G7+G10+G23+G34 -> 1745.18 | H6: =H7+H10+H23+H34 -> 802.40 | I6: =G6-H6 -> 942.78
A7: Функционирование высшего должностного лица субьекта Российской Федерации и муниципального образования | B7: 801 | C7: 01 | D7: 02 | G7: =G8 -> 357.13 | H7: =H8 -> 164.61 | I7: =G7-H7 -> 192.51
A8: Обеспечение деятельности высшего должностного лица | B8: 801 | C8: 01 | D8: 02 | E8: 99 0 Л0 10100 | G8: =G9 -> 357.13 | H8: =H9 -> 164.61 | I8: 192.51
A9: Расходы на выплаты персоналу в целях обеспечения выполнения функций государственными (муниципальными) органами, казенными учреждениями, органами управления государственными внебюджетными фондами | B9: 801 | C9: 01 | D9: 02 | E9: 99 0 Л0 10100 | F9: 100 | G9: 357.13 | H9: 164.61 | I9: 192.51
A10: Функционирование Правительства Российской Федерации, высших исполнительных органов государственной власти субъектов Российской Федерации, местных администрации | B10: 801 | C10: 01 | D10: 04 | G10: =G12+G16 -> 1210.24 | H10: =H12+H16 -> 520.71 | I10: 689.53
A11: Подпрограмма «Создание условий реализации муниципальной программы» | B11: 801 | C11: 01 | D11: 04 | E11: 01 3 00 00000 | G11: =G12 -> 1165.60 | H11: =H12 -> 517.71 | I11: 647.89
A12: Основное мероприятие "Повышение эффективности муниципального управления" | B12: 801 | C12: 01 | D12: 04 | E12: 01 3 00 00000 | G12: =G13 -> 1165.60 | H12: =H13 -> 517.71 | I12: 647.89
A13: Материально-техническое обеспечение аппарата управления | B13: 801 | C13: 01 | D13: 04 | E13: 01 3 У1 00000 | G13: =G14+G15 -> 1165.60 | H13: =H14+H15 -> 517.71 | I13: 647.89
A14: Расходы на выплаты персоналу в целях обеспечения выполнения функций государственными (муниципальными) органами, казенными учреждениями, органами управления государственными внебюджетными фондами | B14: 801 | C14: 01 | D14: 04 | E14: 01 3 У1 80110 | F14: 100 | G14: 1040.60 | H14: 464.01 | I14: 576.59
A15: Расходы на выплаты персоналу в целях обеспечения выполнения функций государственными (муниципальными) органами, казенными учреждениями, органами управления государственными внебюджетными фондами | B15: 801 | C15: 01 | D15: 04 | E15: 01 3 У1 S8500 | F15: 100 | G15: 125.00 | H15: 53.70 | I15: 71.30
A16: Подпрограмма «Развитие экономического и налогового потенциала» | B16: 801 | C16: 01 | D16: 04 | E16: 01 2 00 00000 | G16: =G17+G20 -> 44.64 | H16: =H17+H20 -> 3.00 | I16: 41.64
A17: Основное мероприятие "Фомирование эффективной системы управления и распоряжения муниципальными финансами" | B17: 801 | C17: 01 | D17: 04 | E17: 01 2 01 00000 | G17: =G18 -> 10.00 | H17: =H18 -> 3.00 | I17: 7.00
A18: Материально-техническое обеспечение | B18: 801 | C18: 01 | D18: 04 | E18: 01 2 01 01000 | G18: =G19 -> 10.00 | H18: =H19 -> 3.00 | I18: 7.00
A19: Иные бюджетные ассигнования | B19: 801 | C19: 01 | D19: 04 | E19: 01 2 01 01000 | F19: 800 | G19: 10.00 | H19: 3.00 | I19: 7.00
A20: Основное мероприятие "Повышение эффективной управления муниципальной собственностью" | B20: 801 | C20: 01 | D20: 04 | E20: 01 2 02 00000 | G20: =G21 -> 34.64 | H20: =H21 -> 0.00 | I20: 34.64
A21: Межбюджетные трансферты, выделяемые из бюджета МОКаспинское сельское поселение на финансирование расходов, связанных с передачей полномочий органам местного самоуправления муниципального образования "Шебалинский район" | B21: 801 | C21: 01 | D21: 04 | E21: 01 2 02 01100 | G21: =G22 -> 34.64 | H21: =H22 -> 0.00 | I21: 34.64
A22: Межбюджетные трансферты | B22: 801 | C22: 01 | D22: 04 | E22: 01 2 02 01100 | F22: 500 | G22: 34.64 | H22: 0.00 | I22: 34.64
A23: РЕЗЕРВНЫЕ ФОНДЫ | B23: 801 | C23: 01 | D23: 11 | G23: =G24 -> 15.00 | H23: =H24 -> 0.00 | I23: 15.00
A24: Подпрограмма «Обеспечение безопасности населения и профилактика терроризма и экстремизма» | B24: 801 | C24: 01 | D24: 11 | E24: 02 2 00 00000 | G24: =G25+G28+G31 -> 15.00 | H24: =H25+H28+H31 -> 0.00 | I24: 15.00
A25: Основное мероприятие "Обеспечение первичных мер пожарной безопасности в границах поселений" | B25: 801 | C25: 01 | D25: 11 | E25: 02 2 01 Ш1000 | G25: =G26 -> 5.00 | H25: =H26 -> 0.00 | I25: 5.00
A26: Обеспечение первичных мер пожарной безопасности | B26: 801 | C26: 01 | D26: 11 | E26: 02 2 01 Ш1000 | G26: =G27 -> 5.00 | H26: =H27 -> 0.00 | I26: 5.00
A27: Иные бюджетные ассигнования | B27: 801 | C27: 01 | D27: 11 | E27: 02 2 01 Ш1000 | F27: 800 | G27: 5.00 | H27: 0.00 | I27: 5.00
A28: Основное мероприятие "Профилактика терроризма и экстремизма в границах поселения" | B28: 801 | C28: 01 | D28: 11 | E28: 02 2 02 Ш2000 | G28: =G29 -> 5.00 | H28: =H29 -> 0.00 | I28: 5.00
A29: Совершенствование системы информационно-пропагандистского противодействия терроризму и экстремизму | B29: 801 | C29: 01 | D29: 11 | E29: 02 2 02 Ш2000 | G29: =G30 -> 5.00 | H29: =H30 -> 0.00 | I29: 5.00
A30: Иные бюджетные ассигнования | B30: 801 | C30: 01 | D30: 11 | E30: 02 2 02 Ш2000 | F30: 800 | G30: 5.00 | H30: 0.00 | I30: 5.00
A31: Основное мероприятие "Предупреждение и ликвидация последствий чрезвычайных ситуаций в границах поселения" | B31: 801 | C31: 01 | D31: 11 | E31: 02 2 03 Ш3000 | G31: =G32 -> 5.00 | H31: =H32 -> 0.00 | I31: 5.00
A32: Обеспечение наличия запасов резервов финансовых и материальных ресурсов для ликвидации ЧС | B32: 801 | C32: 01 | D32: 11 | E32: 02 2 03 Ш3000 | G32: =G33 -> 5.00 | H32: =H33 -> 0.00 | I32: 5.00
A33: Иные бюджетные ассигнования | B33: 801 | C33: 01 | D33: 11 | E33: 02 2 03 Ш3000 | F33: 800 | G33: 5.00 | H33: 0.00 | I33: 5.00
A34: Другие общегосударственные вопросы | B34: 801 | C34: 01 | D34: 13 | G34: =G35+G39+G48 -> 162.81 | H34: =H35+H39+H48 -> 117.08 | I34: 45.73
A35: Подпрограмма "Развитие социально-культурной сферы" | B35: 801 | C35: 01 | D35: 13 | E35: 01 1 01 00000 | G35: =G36 -> 5.00 | H35: 0.00 | I35: 5.00
A36: Основное мероприятие "Развитие культурно-досуговой деятельности" | B36: 801 | C36: 01 | D36: 13 | E36: 01 1 01 00000 | G36: 5.00 | H36: 0.00 | I36: 5.00
A37: Организация проведения мероприятий | B37: 801 | C37: 01 | D37: 13 | E37: 01 1 01 01000 | G37: 5.00 | H37: 0.00 | I37: 5.00
A38: Закупка товаров, работ и услуг для обеспечения государственных (муниципальных) нужд | B38: 801 | C38: 01 | D38: 13 | E38: 01 1 01 01200 | F38: 200 | G38: 5.00 | H38: 0.00 | I38: 5.00
A39: Подпрограмма «Развитие экономического и налогового потенциала» | B39: 801 | C39: 01 | D39: 13 | E39: 01 2 00 00000 | G39: =G40+G43 -> 152.81 | H39: =H40+H43 -> 117.08 | I39: 35.73
A40: Основное мероприятие "Фомирование эффективной системы управления и распоряжения муниципальными финансами" | B40: 801 | C40: 01 | D40: 13 | E40: 01 2 01 00000 | G40: =G41 -> 34.50 | H40: =H41 -> 0.00 | I40: 34.50
A41: Обеспечение мероприятий по информатизации бюджетного процесса | B41: 801 | C41: 01 | D41: 13 | E41: 01 2 01 S9600 | G41: =G42 -> 34.50 | H41: =H42 -> 0.00 | I41: 34.50
A42: Закупка товаров, работ и услуг для обеспечения государственных (муниципальных) нужд | B42: 801 | C42: 01 | D42: 13 | E42: 01 2 01 S9600 | F42: 200 | G42: 34.50 | H42: 0.00 | I42: 34.50
A43: Основное мероприятие "Повышение эффективной управления муниципальной собственностью" | B43: 801 | C43: 01 | D43: 13 | E43: 01 2 02 00000 | G43: =G44+G46 -> 118.31 | H43: =H44+H46 -> 117.08 | I43: 1.23
A44: Организация мероприятия по обеспечению доступа к внешним информационным ресурсам | B44: 801 | C44: 01 | D44: 13 | E44: 01 2 02 10200 | G44: =G45 -> 25.00 | H44: =H45 -> 24.67 | I44: 0.33
A45: Закупка товаров, работ и услуг для обеспечения государственных (муниципальных) нужд | B45: 801 | C45: 01 | D45: 13 | E45: 01 2 02 10200 | F45: 200 | G45: 25.00 | H45: 24.67 | I45: 0.33
A46: Организация мероприятий по содержанию муниципального имущества | B46: 801 | C46: 01 | D46: 13 | E46: 01 2 02 10200 | G46: =G47 -> 93.31 | H46: =H47 -> 92.41 | I46: 0.90
A47: Закупка товаров, работ и услуг для обеспечения государственных (муниципальных) нужд | B47: 801 | C47: 01 | D47: 13 | E47: 01 2 02 10200 | F47: 200 | G47: 93.31 | H47: 92.41 | I47: 0.90
A48: Непрограммные направления деятельности сельской администрации | B48: 801 | C48: 01 | D48: 13 | E48: 99 0 У0 45300 | G48: =G49 -> 5.00 | H48: 0.00 | I48: 5.00
A49: Обеспечение мероприятий пв области законодательства об административных правонарушениях | B49: 801 | C49: 01 | D49: 13 | E49: 99 0 У0 45300 | G49: =G50 -> 5.00 | H49: 0.00 | I49: 5.00
A50: Закупка товаров, работ и услуг для обеспечения государственных (муниципальных) нужд | B50: 801 | C50: 01 | D50: 13 | E50: 99 0 У0 45300 | F50: 200 | G50: 5.00 | H50: 0.00 | I50: 5.00
A51: НАЦИОНАЛЬНАЯ ОБОРОНА | B51: 801 | C51: 02 | D51: 00 | G51: =G52 -> 69.50 | H51: 35.60 | I51: 33.90
A52: Мобилизационная и вневойсковая подготовка | B52: 801 | C52: 02 | D52: 03 | E52: 99 0 Л1 51180 | G52: 69.50 | H52: 35.60 | I52: 33.90
A53: Осуществление первичного воинского учета на территориях, где отсутствуют военные комиссариаты | B53: 801 | C53: 02 | D53: 03 | E53: 99 0 Л1 51180 | G53: 69.50 | H53: 35.60 | I53: 33.90
A54: Расходы на выплаты персоналу в целях обеспечения выполнения функций государственными (муниципальными) органами, казенными учреждениями, органами управления государственными внебюджетными фондами | B54: 801 | C54: 02 | D54: 03 | E54: 99 0 Л1 51180 | F54: 100 | G54: 69.50 | H54: 35.60 | I54: 33.90
A55: НАЦИОНАЛЬНАЯ ЭКОНОМИКА | B55: 801 | C55: 04 | D55: 00 | G55: =G56 -> 133.60 | H55: 53.56 | I55: 80.04
A56: Подпрограмма "Развитие инженерно- коммунального и дорожно-транспортного комплекса" | B56: 801 | C56: 04 | D56: 00 | E56: 02 1 00 00000 | G56: 133.60 | H56: 53.56 | I56: 80.04
A57: ДОРОЖНОЕ ХОЗЯЙСТВО | B57: 801 | C57: 04 | D57: 09 | E57: 02 1 01 Д0000 | G57: 133.60 | H57: 53.56 | I57: 80.04
A58: Основное мероприятие "Содержание и развитие дорожно-транспортного комплекса" | B58: 801 | C58: 04 | D58: 09 | E58: 02 1 01 Д0000 | G58: 133.60 | H58: 53.56 | I58: 80.04
A59: Закупка товаров, работ и услуг для обеспечения государственных (муниципальных) нужд | B59: 801 | C59: 04 | D59: 09 | E59: 02 1 01 Д0000 | F59: 200 | G59: 133.60 | H59: 53.56 | I59: 80.04
A60: ЖИЛИЩНО-КОММУНАЛЬНОЕ ХОЗЯЙСТВО | B60: 801 | C60: 05 | D60: 00 | G60: =G65+G61 -> 115.40 | H60: =H65+H61 -> 32.86 | I60: 82.54
A61: Коммунальное хозяйство | B61: 801 | C61: 05 | D61: 02 | G61: =G62 -> 105.40 | H61: 26.31 | I61: 79.09
A62: Подпрограмма "Развитие инженерно- коммунального и дорожно-транспортного комплекса" | B62: 801 | C62: 05 | D62: 02 | E62: 02 1 02 00000 | G62: 105.40 | H62: 26.31 | I62: 79.09
A63: Основное мероприятие "Содержание инженерно -коммунальной инфраструктуры | B63: 801 | C63: 05 | D63: 02 | E63: 02 1 02 00000 | G63: 105.40 | H63: 26.31 | I63: 79.09
A64: Закупка товаров, работ и услуг для обеспечения государственных (муниципальных) нужд | B64: 801 | C64: 05 | D64: 02 | E64: 02 1 02 01400 | F64: 200 | G64: 105.40 | H64: 26.31 | I64: 79.09
A65: БЛАГОУСТРОЙСТВО | B65: 801 | C65: 05 | D65: 03 | G65: =G66 -> 10.00 | H65: 6.55 | I65: 3.45
A66: Подпрограмма Повышение уровня благоустройства территории | B66: 801 | C66: 05 | D66: 03 | E66: 02 3 00 00000 | G66: 10.00 | H66: 6.55 | I66: 3.45
A67: Основное мероприятие "Поддержание и улучшение санитарного и эстетического состояния территории" | B67: 801 | C67: 05 | D67: 03 | E67: 02 3 01 00000 | G67: 10.00 | H67: 6.55 | I67: 3.45
A68: Организация сбора ,вывоза бытовых отходов | B68: 801 | C68: 05 | D68: 03 | E68: 02 3 01 10000 | G68: 10.00 | H68: =H69 -> 6.55 | I68: 3.45
A69: Закупка товаров, работ и услуг для обеспечения государственных (муниципальных) нужд | B69: 801 | C69: 05 | D69: 03 | E69: 02 3 01 10000 | F69: 200 | G69: 10.00 | H69: 6.55 | I69: 3.45
A70: Условно утверждаемые расходы | B70: 999 | C70: 99 | D70: 99 | E70: 99 9 99 99999 | G70: 0.00 | H70: 0.00 | I70: 0.00
A71: ВСЕГО РАСХОДОВ | G71: =G6+G51+G55+G60+G70 -> 2063.68 | H71: =H6+H51+H55+H60+H70 -> 924.41 | I71: =G71-H71 -> 1139.26

Sheet 4
C1: Приложение 4 к Постановлению №36 от 06.09.2022 г « Об исполнении бюджета сельской администрации МО Каспинское сельское поселение за 2 квартал 2022 года."
A2: Источники финансирования бюджета муниципального образования Каспинское сельское поселение за 2 квартал 2022 год
B4: Код бюджетной классификации | C4: Утвержденные плановые назначения на 2022 год, сумма (тыс. рублей) | D4: Кассовое исполнение за 1 квартал 2022 год, сумма (тыс. рублей) | E4: Неисполненные назначения
A5: Дефицит бюджета | C5: =C6 -> 0 | D5: =D6 -> -5.34 | E5: =C5-D5 -> 5.34
A6: Источники внутреннего финансирования дефицита бюджета: | B6: 000 01 00 00 00 00 0000 000 | C6: =C8 -> 0 | D6: =D8 -> -5.34 | E6: =C6-D6 -> 5.34
A7: в том числе:
A8: Изменение остатков средств на счетах по учету средств бюджета | B8: 000 01 05 00 00 00 0000 000 | C8: 0 | D8: -5.34 | E8: =C8-D8 -> 5.34
A9: Кредиты кредитных организаций в валюте Российской Федерации | B9: 000 01 02 00 00 00 0000 000
A10: Получение кредитов от кредитных организаций в валюте Российской Федерации | B10: 000 01 02 00 00 00 0000 700
A11: Получение кредитов от кредитных организаций местными бюджетами бюджетами в валюте Российской Федерации | B11: 000 01 02 00 00 05 0000 710
A12: Погашение кредитов, предоставленных кредитными организациями в валюте Российской Федерации | B12: 000 01 02 00 00 00 0000 800
A13: Погашение местными бюджетами кредитов от кредитных организаций в валюте Российской Федерации | B13: 000 01 02 02 00 05 0000 810
